Cogmind - Beta 14 @@@ ROGUE MODE // 2024.12.05 @ 02:36:10 Player: Ayre223 Result: Core destroyed Performance ------------- Evolutions (5) 2500 Regions Visited (11) 2200 Robots Destroyed (103) 515 Value Destroyed (4339) 4339 Prototype IDs (12) 240 Alien Tech Used (0) 0 Bonus (1130) 1130 TOTAL SCORE: 10924 Bonus ------- Met Warlord at Base 500 MAIN.C Attacked Warlord 500 Warlord Defense Kills 130 Cogmind --------- Core Integrity 0/1000 Matter 131/300 Energy 65/315 System Corruption 0% Temperature Critical (583) Movement Core (500) Ox9 Location -5/Warlord Parts ------- > --- POWER (2) -------- Neutrino Core > --- PROPULSION (4) --- (None) > --- UTILITY (6) ------ Signal Interpreter Improved Weapon Cycler Focal Shield > --- WEAPON (5) ------- Wave Gun Thermoblaster > --- INVENTORY (5) ---- Backup Laser III Backup Laser III Force Rifle Force Rifle Faulty Neutron Cannon Peak State ------------ > --- POWER ------------ Deuterium Engine Neutrino Core > --- PROPULSION ------- Makeshift Leg Makeshift Leg Makeshift Leg > --- UTILITY ---------- Improved Cryofiber Web Advanced Heat Sink Signal Interpreter Improved Weapon Cycler Makeshift Transmission Jammer Focal Shield > --- WEAPON ----------- Wave Gun Wave Gun Wave Gun Thermoblaster Thermoblaster > --- INVENTORY -------- Backup Laser III Force Rifle Force Rifle Neutron Cannon Neutron Cannon [Rating: 80] Favorites ----------- Power Micro Fission Core Engine Deuterium Engine Power Core Micro Fission Core Reactor Light Antimatter Reactor Propulsion Carbon-fiber Leg Treads Light Treads Leg Carbon-fiber Leg Utility Advanced Heat Sink Device Advanced Heat Sink Storage Large Storage Unit Processor Signal Interpreter Hackware Hacking Suite Weapon Flak Gun Energy Gun Wave Gun Energy Cannon Compact Ion Cannon Ballistic Gun Flak Gun Ballistic Cannon Flak Cannon Launcher Thermoblaster Special Weapon Plasma Cutter Build | -11 -10 -10 -9 -8 -8 -7 -6 -5 -5 -5 -5 ------- Run | Yrd Mat Min Mat Mat Sto Fac Fac Fac Upp Upp War Slots Evolved 10 | . . . 2 2 . 2 2 2 . . . Power 1 | . . . . . . . . 1 . . . Propulsion 2 | . . . 1 . . . 1 . . . . Utility 4 | . . . 1 2 . . 1 . . . . Weapon 3 | . . . . . . 2 . 1 . . . Parts Attached 111 | 6 1 4 13 6 13 8 23 10 8 4 15 Power 15 | 1 . 1 2 . 2 1 3 1 1 1 2 Engine 10 | 1 . 1 2 . 1 1 2 . . 1 1 Core 4 | . . . . . 1 . . 1 1 . 1 Reactor 1 | . . . . . . . 1 . . . . Propulsion 29 | 2 . 2 5 2 4 2 6 3 . . 3 Treads 2 | 2 . . . . . . . . . . . Leg 27 | . . 2 5 2 4 2 6 3 . . 3 Wheel . | . . . . . . . . . . . . Hover . | . . . . . . . . . . . . Flight . | . . . . . . . . . . . . Utility 20 | 1 1 . 1 3 1 . 7 . 1 2 3 Device 13 | . . . 1 . 1 . 5 . 1 2 3 Storage 2 | 1 . . . . . . 1 . . . . Processor 4 | . . . . 3 . . 1 . . . . Hackware 1 | . 1 . . . . . . . . . . Protection . | . . . . . . . . . . . . Artifact . | . . . . . . . . . . . . Weapon 47 | 2 . 1 5 1 6 5 7 6 6 1 7 Energy Gun 20 | . . 1 2 . 2 1 5 3 1 1 4 Energy Cannon 7 | . . . . 1 1 1 1 3 . . . Ballistic Gun 9 | 2 . . 1 . 2 . 1 . 3 . . Ballistic Cannon 7 | . . . 1 . 1 3 . . 2 . . Launcher 3 | . . . . . . . . . . . 3 Special Weapon 1 | . . . 1 . . . . . . . . Impact Weapon . | . . . . . . . . . . . . Slashing Weapon . | . . . . . . . . . . . . Piercing Weapon . | . . . . . . . . . . . . Special Melee Weapon . | . . . . . . . . . . . . Unidentified Prototypes 1 | . . . . . . . . 1 . . . Parts Lost 34 | . . 1 1 . 1 . 5 8 5 11 2 Power 2 | . . . . . . . . . 1 1 . Propulsion 10 | . . . . . . . 4 4 1 1 . Utility 6 | . . . . . . . . . 1 3 2 Weapon 16 | . . 1 1 . 1 . 1 4 2 6 . Highest Loss Streak 5 | . . 1 1 . 1 . 1 5 3 5 2 To Critical Strikes . | . . . . . . . . . . . . Average Slot Usage (%) 85 | . 99 99 94 100 100 100 97 94 75 59 82 Engine 4 | . 14 14 11 9 5 7 4 5 . 1 4 Core 2 | . . . . . 3 . . 2 4 3 4 Treads 1 | . 28 12 . . . . . . . . . Leg 14 | . . 15 28 27 27 23 23 20 5 . 15 Device 14 | . . . 11 9 9 7 12 17 16 16 26 Storage 5 | . 14 14 11 9 9 7 6 5 5 4 . Processor 11 | . . . . 20 27 23 19 11 11 10 5 Hackware 1 | . 13 14 11 6 . . . . . . . Energy Gun 8 | . . 8 10 . 2 . 10 17 5 4 19 Energy Cannon 3 | . . . . 7 7 7 1 9 7 . . Ballistic Gun 5 | . 28 18 4 1 5 3 3 . 13 3 . Ballistic Cannon 4 | . . . 3 9 2 18 10 . . 10 . Peak Build Rating 80 | 6 9 11 22 31 33 41 62 74 64 55 80 Average Rating 45 | 4 8 9 14 29 29 38 52 68 60 37 65 On Entrance 28 | . 6 9 11 22 30 27 41 62 64 55 13 Naked Turns . | . . . . . . . . . . . . Heaviest Build 65 | 14 14 14 21 25 29 42 58 65 56 54 63 Greatest Support 71 | 40 40 40 43 51 51 51 71 68 15 3 60 Greatest Overweight (x) 17 | . . . . . . . 1 2 3 17 1 Average Overweight (x) . | . . . . . . . . . 3 9 . Largest Inventory Capacity 15 | 8 8 8 8 8 8 8 15 15 15 15 5 Average Capacity 11 | 7 8 8 8 8 8 8 14 15 15 14 5 Most Carried 15 | 4 5 6 8 8 8 8 15 15 14 8 5 Average Carried 7 | 2 4 4 6 7 7 7 8 13 11 5 4 Final Capacity 15 | 8 8 8 8 8 8 8 15 15 15 5 5 Final Carried 14 | 4 5 6 8 8 5 8 14 14 8 5 5 Class Distribution -------------------- 42% | Gunner 25% | Mutant 16% | Scavenger-Gunner 6% | Derelict-Tank 4% | Scavenger-Mutant 3% | Pyromaniac-Tank Dominant Class ---------------- Mutant | -10/Materials Mutant | -10/Mines Mutant | -9/Materials Mutant | -8/Materials Mutant | -8/Storage Gunner | -7/Factory Gunner | -6/Factory Scavenger-Gunner | -5/Factory Gunner | -5/Upper Caves Gunner | -5/Upper Caves Derelict-Tank | -5/Warlord Resources | -11 -10 -10 -9 -8 -8 -7 -6 -5 -5 -5 -5 ----------- Run | Yrd Mat Min Mat Mat Sto Fac Fac Fac Upp Upp War Matter Collected 2562 | 246 66 257 104 156 229 68 721 137 246 332 . Remotely . | . . . . . . . . . . . . Salvage Created 4247 | . 124 193 183 274 823 83 1032 823 465 187 60 Parts 200 | . 7 3 20 26 44 2 38 29 20 6 5 Haulers Intercepted . | . . . . . . . . . . . . Recyclers Shooed 4 | . . . . . . . 1 3 . . . Parts Field Recycled . | . . . . . . . . . . . . Retrieved Matter . | . . . . . . . . . . . . Parts Self-Destructed 25 | . . . . . . . . . 19 6 . Prevented 3 | . . . . . . . . . . 3 . Kills | -11 -10 -10 -9 -8 -8 -7 -6 -5 -5 -5 -5 ------- Run | Yrd Mat Min Mat Mat Sto Fac Fac Fac Upp Upp War Combat Hostiles Destroyed 99 | . 2 11 5 5 17 2 18 18 13 6 2 Melee 1 | . . . . . . . . . . . 1 Guns 43 | . 2 11 1 . 2 . 9 9 8 1 . Cannons 48 | . . . 4 5 14 2 7 6 5 5 . AOE 1 | . . . . . . . . . . . 1 Classes Destroyed 14 | . 2 1 4 . 2 . 4 . . . 1 Worker 4 | . . . 1 . 1 . 1 1 . . . Builder 1 | . . . . . . . 1 . . . . Recycler 1 | . . . . . . . 1 . . . . Operator 3 | . 1 . . 1 1 . . . . . . Watcher 5 | . . . 1 1 . . 2 1 . . . Swarmer 18 | . . . 2 . . . . 8 8 . . Saboteur 1 | . . . . . . . . . . . 1 Grunt 43 | . 2 1 2 3 10 . 9 8 4 4 . Duelist 2 | . . . . . 1 . . . . . 1 Sentry 17 | . . . 1 2 5 2 6 . 1 . . Hunter 1 | . . . . . 1 . . . . . . Programmer 6 | . . . . . . . 2 2 . 2 . Behemoth 1 | . . . . . . . 1 . . . . Assembled 10 | . . 10 . . . . . . . . . Best Kill Streak 10 | . 2 2 2 4 5 1 6 10 4 4 2 Combat Bots Only 9 | . 2 2 2 4 5 1 3 9 4 4 2 Max Kills in Single Turn 2 | . 1 1 1 1 2 1 2 2 2 1 1 Gunslinging . | . . . . . . . . . . . . Exploded 1 | . . . . . . . . . . . 1 Melee 1 | . . . . . . . . . . . 1 Uniques/NPCs Destroyed . | . . . . . . . . . . . . Combat | -11 -10 -10 -9 -8 -8 -7 -6 -5 -5 -5 -5 -------- Run | Yrd Mat Min Mat Mat Sto Fac Fac Fac Upp Upp War Hostile Shots Fired 679 | . 7 71 17 14 84 27 173 94 87 90 15 Missed 217 | . 2 20 6 1 22 13 66 28 30 28 1 Damage Taken 7794 | . 61 701 114 202 1109 107 1374 1296 992 1421 417 Core 1772 | . 51 155 10 35 164 32 197 105 243 548 232 Absorbed by Shields . | . . . . . . . . . . . . Ignored by Resistances 42 | . . . . . . . 25 . . . 17 Regen/Repaired (Parts) 24 | . . . . . . . . . . . 24 Core Remaining (%) 74 | 100 . 17 97 . 63 95 76 . . . . Volleys Fired 255 | . 9 43 15 13 48 3 40 43 18 19 4 Largest 5 | . 2 2 2 2 2 4 4 5 5 5 3 Hottest 601 | . 40 70 85 115 160 220 287 393 408 181 601 Shots Fired 738 | . 18 86 23 26 96 12 160 176 77 56 8 Gun 436 | . 18 86 16 . 34 1 90 115 52 19 5 Cannon 297 | . . . 5 26 62 11 70 61 25 37 . Launcher 3 | . . . . . . . . . . . 3 Special 2 | . . . 2 . . . . . . . . Kinetic 308 | . 18 70 6 13 33 9 76 . 33 50 . Thermal 430 | . . 16 17 13 63 3 84 176 44 6 8 Explosive . | . . . . . . . . . . . . Electromagnetic . | . . . . . . . . . . . . Robot Hit Streak 21 | . 5 5 6 13 21 7 17 14 9 10 5 Robot Miss Streak 6 | . 2 5 3 2 2 1 5 6 5 6 5 Penetration Max 1 | . . . . . . . 1 . . 1 . Secondary Targets . | . . . . . . . . . . . . Shots Hit Robots 485 | . 13 44 16 16 73 11 112 108 49 42 1 Core Hits 279 | . 7 24 10 10 31 7 85 32 38 33 2 Critical Kills 1 | . . . . . 1 . . . . . . Critical Parts Destroyed . | . . . . . . . . . . . . Critical Strikes 10 | . . . . . 3 1 3 3 . . . Burn 5 | . . . . . 1 . 1 3 . . . Meltdown 1 | . . . . . 1 . . . . . . Blast 4 | . . . . . 1 1 2 . . . . Melee Attacks . | . . . . . . . . . . . . Impact . | . . . . . . . . . . . . Slashing . | . . . . . . . . . . . . Piercing . | . . . . . . . . . . . . Sneak Attacks . | . . . . . . . . . . . . Combat Hostiles . | . . . . . . . . . . . . Follow-up Attacks . | . . . . . . . . . . . . Damage Inflicted 11186 | . 160 545 215 375 1601 285 2889 2696 1191 1107 122 Guns 5246 | . 160 545 150 . 361 16 1520 1608 723 163 . Cannons 5696 | . . . 53 375 1240 269 1262 1085 468 944 . Explosions 229 | . . . . . . . 107 . . . 122 Melee . | . . . . . . . . . . . . Ramming 3 | . . . . . . . . 3 . . . Kinetic 4323 | . 160 421 66 71 509 211 1348 . 477 1060 . Thermal 6860 | . . 124 149 304 1092 74 1541 2693 714 47 122 Explosive . | . . . . . . . . . . . . Electromagnetic . | . . . . . . . . . . . . Impact . | . . . . . . . . . . . . Slashing . | . . . . . . . . . . . . Piercing . | . . . . . . . . . . . . Highest Corruption 6 | . . . . . 1 . . 3 3 6 6 Average Corruption 3 | . . . . . 1 . . 2 3 3 6 Corruption Purged . | . . . . . . . . . . . . Corruption Blocked . | . . . . . . . . . . . . Effects 68 | . . . . . . . . 17 20 31 . Message Errors 15 | . . . . . . . . 5 . 10 . Matter Fused 16 | . . . . . . . . 5 5 6 . Heat Flow Errors 11 | . . . . . . . . 3 4 4 . Energy Discharges 6 | . . . . . . . . 2 3 1 . Parts Rejected 1 | . . . . . . . . . . 1 . Data Loss (minor) 6 | . . . . . . . . . 2 4 . Data Loss (major) 5 | . . . . . . . . 1 1 3 . Misfires 2 | . . . . . . . . . 1 1 . Alerts 5 | . . . . . . . . . 4 1 . Weapon Failures 1 | . . . . . . . . 1 . . . Overload Shots . | . . . . . . . . . . . . Overflow Damage 132 | . . . . . . . 47 48 6 31 . Projectiles 85 | . . . . . . . . 48 6 31 . Explosions 47 | . . . . . . . 47 . . . . Melee . | . . . . . . . . . . . . Knockbacks 22 | . . . . 1 4 . 13 . . 4 . Impact . | . . . . . . . . . . . . Kinetic 19 | . . . . 1 3 . 11 . . 4 . Secondary 3 | . . . . . 1 . 2 . . . . Self-Inflicted Damage . | . . . . . . . . . . . . Shots . | . . . . . . . . . . . . Rammed . | . . . . . . . . . . . . Targets Rammed 1 | . . . . . . . . 1 . . . Kicked 1 | . . . . . . . . 1 . . . Crushed . | . . . . . . . . . . . . Highest Temperature 704 | . 2 67 54 354 294 204 652 203 84 . 704 Average Temperature 114 | . 2 16 19 158 97 88 144 89 44 . 560 Received Heat Transfer 2177 | . 33 275 39 108 324 36 448 252 290 303 69 Effects 15 | . . . . 4 . . 7 . . . 4 Shutdowns 3 | . . . . . . . 2 . . . 1 Energy Bleed 1 | . . . . 1 . . . . . . . Interference 3 | . . . . 3 . . . . . . . Matter Decay 4 | . . . . . . . 3 . . . 1 Short Circuit 2 | . . . . . . . 1 . . . 1 Damage (major) 1 | . . . . . . . 1 . . . . Damage (core) 1 | . . . . . . . . . . . 1 Siege Activations . | . . . . . . . . . . . . Robots Corrupted . | . . . . . . . . . . . . Combat Hostiles . | . . . . . . . . . . . . Parts Fried . | . . . . . . . . . . . . Impact Corruptions . | . . . . . . . . . . . . Robots Melted 6 | . . . . . 1 . 2 3 . . . Combat Hostiles 6 | . . . . . 1 . 2 3 . . . Parts Melted 30 | . . . 1 . 7 . 8 14 . . . Heat Transferred 13541 | . . 370 444 600 2329 150 3179 5080 1118 111 160 Parts Sabotaged 9 | . . . . . . . . . . . 9 Parts Stolen . | . . . . . . . . . . . . Parts Stripped . | . . . . . . . . . . . . Power Chain Reactions . | . . . . . . . . . . . . Alert | -11 -10 -10 -9 -8 -8 -7 -6 -5 -5 -5 -5 ------- Run | Yrd Mat Min Mat Mat Sto Fac Fac Fac Upp Upp War Peak Influence 342 | . 58 62 162 271 342 200 308 314 . . . Initial 142 | . . 22 . 27 114 142 21 77 . . . Average 141 | . 18 41 30 150 213 148 163 201 . . . Maximum Alert Level 1 | . . . . 1 1 1 1 1 . . . Low Security (%) 64 | 100 100 100 100 66 32 49 74 38 . . . Level 1 35 | . . . . 33 67 50 25 61 . . . Level 2 . | . . . . . . . . . . . . Level 3 . | . . . . . . . . . . . . Level 4 . | . . . . . . . . . . . . Level 5 . | . . . . . . . . . . . . High Security . | . . . . . . . . . . . . Max Security . | . . . . . . . . . . . . Squads Dispatched 15 | . . . 2 1 1 . 9 2 . . . Investigation 1 | . . . . . . . . 1 . . . Extermination 3 | . . . . . . . 2 1 . . . Reinforcement 5 | . . . 2 1 1 . 1 . . . . Assault . | . . . . . . . . . . . . Garrison 6 | . . . . . . . 6 . . . . Intercept . | . . . . . . . . . . . . Searches Triggered . | . . . . . . . . . . . . Construction Impeded . | . . . . . . . . . . . . Haulers Reinforced . | . . . . . . . . . . . . Active Scanning Responses . | . . . . . . . . . . . . Cargo Convoy Interrupts 1 | . . . . . . . . 1 . . . Stealth | -11 -10 -10 -9 -8 -8 -7 -6 -5 -5 -5 -5 --------- Run | Yrd Mat Min Mat Mat Sto Fac Fac Fac Upp Upp War Distress Signals 5 | . . 1 1 . . . . 2 . . 1 Communications Jammed 3 | . . . . . . . . . . . 3 Distress Signals 3 | . . . . . . . . . . . 3 Times Spotted 142 | . 2 12 11 9 22 2 26 24 13 7 14 Peak Tracking Total 7 | . 1 2 4 4 6 1 4 7 5 4 6 Tactical Retreats 5 | . . . 1 . 1 . 1 . 1 . 1 Traps | -11 -10 -10 -9 -8 -8 -7 -6 -5 -5 -5 -5 ------- Run | Yrd Mat Min Mat Mat Sto Fac Fac Fac Upp Upp War Traps Triggered 3 | . . . . . 2 . . 1 . . . Indirectly . | . . . . . . . . . . . . Trap Hack Attempts . | . . . . . . . . . . . . Triggered . | . . . . . . . . . . . . Disarmed . | . . . . . . . . . . . . Reprogrammed . | . . . . . . . . . . . . Reused . | . . . . . . . . . . . . Traps Extracted . | . . . . . . . . . . . . Installed . | . . . . . . . . . . . . Triggered 15 | . . . . . . . . 1 . 5 9 Machines | -11 -10 -10 -9 -8 -8 -7 -6 -5 -5 -5 -5 ---------- Run | Yrd Mat Min Mat Mat Sto Fac Fac Fac Upp Upp War Machines Disabled 7 | . . . . 2 . . 4 . . . 1 Max in Single Turn 3 | . . . . 2 . . 3 . . . 1 Machines Repaired . | . . . . . . . . . . . . Machines Dismantled . | . . . . . . . . . . . . Machines Sabotaged . | . . . . . . . . . . . . Overloaded Fab Kills . | . . . . . . . . . . . . Hacking | -11 -10 -10 -9 -8 -8 -7 -6 -5 -5 -5 -5 --------- Run | Yrd Mat Min Mat Mat Sto Fac Fac Fac Upp Upp War Machines Accessed 22 | . 2 1 2 2 4 3 3 1 . . 4 Terminals 14 | . 2 . 2 2 3 2 2 1 . . . Fabricators . | . . . . . . . . . . . . Repair Stations . | . . . . . . . . . . . . Recycling Units . | . . . . . . . . . . . . Scanalyzers . | . . . . . . . . . . . . Garrison Access 3 | . . . . . 1 1 1 . . . . Total Hacks 53 | . 4 1 5 7 8 6 7 3 . . 12 Successful 27 | . 4 1 1 . 3 2 4 . . . 12 Failed 26 | . . . 4 7 5 4 3 3 . . . Catastrophic 3 | . . . . 1 . 1 . 1 . . . Database Lockouts . | . . . . . . . . . . . . Manual 13 | . . . 5 7 . . 1 . . . . Terminals 37 | . 4 . 5 7 7 5 6 3 . . . Fabricators . | . . . . . . . . . . . . Repair Stations . | . . . . . . . . . . . . Recycling Units . | . . . . . . . . . . . . Scanalyzers . | . . . . . . . . . . . . Garrison Access 3 | . . . . . 1 1 1 . . . . Terminal Hacks 27 | . 4 1 1 . 3 2 4 . . . 12 Record 9 | . . . . . . 2 1 . . . 6 Robot Analysis 1 | . . . . . 1 . . . . . . Prototype ID Bank 6 | . . . . . . . 1 . . . 5 Open Door 3 | . . 1 . . 1 . . . . . 1 Emergency Access Points 1 | . 1 . . . . . . . . . . Alert Level 1 | . . . . . . . 1 . . . . Unreport Threat 3 | . . . 1 . 1 . 1 . . . . Locate Traps 1 | . 1 . . . . . . . . . . Dispatch Records 1 | . 1 . . . . . . . . . . Maintenance Status 1 | . 1 . . . . . . . . . . Fabricator Hacks . | . . . . . . . . . . . . Repair Station Hacks . | . . . . . . . . . . . . Recycling Unit Hacks . | . . . . . . . . . . . . Scanalyzer . | . . . . . . . . . . . . Garrison Access Hacks . | . . . . . . . . . . . . Unauthorized Hacks . | . . . . . . . . . . . . Terminals . | . . . . . . . . . . . . Fabricators . | . . . . . . . . . . . . Repair Stations . | . . . . . . . . . . . . Recycling Units . | . . . . . . . . . . . . Scanalyzers . | . . . . . . . . . . . . Garrison Access . | . . . . . . . . . . . . Data Cores Recovered 3 | . 1 . . 1 1 . . . . . . Used 2 | . 1 . . . 1 . . . . . . Hacking Detections 14 | . 1 . 1 2 4 3 2 1 . . . Full Trace Events 1 | . . . . . . . . 1 . . . Feedback Events . | . . . . . . . . . . . . Feedback Blocked . | . . . . . . . . . . . . Robot Schematics Acquired . | . . . . . . . . . . . . Robots Built . | . . . . . . . . . . . . Authchips . | . . . . . . . . . . . . Time . | . . . . . . . . . . . . Total Robot Build Rating . | . . . . . . . . . . . . Part Schematics Acquired . | . . . . . . . . . . . . Parts Built . | . . . . . . . . . . . . Authchips . | . . . . . . . . . . . . Time . | . . . . . . . . . . . . Total Part Build Rating . | . . . . . . . . . . . . Parts Repaired . | . . . . . . . . . . . . Time . | . . . . . . . . . . . . Parts Recycled . | . . . . . . . . . . . . Recycled Matter . | . . . . . . . . . . . . Retrieved Matter . | . . . . . . . . . . . . Retrieved Components . | . . . . . . . . . . . . Parts Scanalyzed . | . . . . . . . . . . . . Part Schematics Acquired . | . . . . . . . . . . . . Parts Damaged . | . . . . . . . . . . . . Bothacking | -11 -10 -10 -9 -8 -8 -7 -6 -5 -5 -5 -5 ------------ Run | Yrd Mat Min Mat Mat Sto Fac Fac Fac Upp Upp War Used RIF Installer . | . . . . . . . . . . . . Robots Hacked . | . . . . . . . . . . . . Non-combat . | . . . . . . . . . . . . Combat . | . . . . . . . . . . . . Robot Hacks Applied . | . . . . . . . . . . . . Relay Couplers Released . | . . . . . . . . . . . . Fabnet Peak Effective % . | . . . . . . . . . . . . Robots Rewired . | . . . . . . . . . . . . Allies Hacked . | . . . . . . . . . . . . Hacks Repelled . | . . . . . . . . . . . . Allies | -11 -10 -10 -9 -8 -8 -7 -6 -5 -5 -5 -5 -------- Run | Yrd Mat Min Mat Mat Sto Fac Fac Fac Upp Upp War Total Allies . | . . . . . . . . . . . . Largest Group . | . . . . . . . . . . . . Highest-Rated Group . | . . . . . . . . . . . . Highest-Rated Ally . | . . . . . . . . . . . . Total Orders . | . . . . . . . . . . . . Ally Attacks . | . . . . . . . . . . . . Total Damage . | . . . . . . . . . . . . Kills . | . . . . . . . . . . . . Allies Corrupted . | . . . . . . . . . . . . Allies Melted 1 | . . . . . . . . . . . 1 Intel | -11 -10 -10 -9 -8 -8 -7 -6 -5 -5 -5 -5 ------- Run | Yrd Mat Min Mat Mat Sto Fac Fac Fac Upp Upp War Robot Analysis Total 1 | . . . . . 1 . . . . . . Derelict Logs Recovered . | . . . . . . . . . . . . Drone Launches . | . . . . . . . . . . . . Drone Recoveries . | . . . . . . . . . . . . Exploration | -11 -10 -10 -9 -8 -8 -7 -6 -5 -5 -5 -5 ------------- Run | Yrd Mat Min Mat Mat Sto Fac Fac Fac Upp Upp War Turns Passed 8994 | 91 184 500 501 257 777 499 1005 973 1516 1426 1265 Spaces Moved 4113 | 53 93 272 223 141 376 363 557 519 396 263 857 Core 457 | 8 . . . . . . . . . 263 186 Treads 211 | 45 93 73 . . . . . . . . . Legs 3445 | . . 199 223 141 376 363 557 519 396 . 671 Wheels . | . . . . . . . . . . . . Hover . | . . . . . . . . . . . . Flight . | . . . . . . . . . . . . Fastest Speed 50 | 50 160 120 120 120 120 120 110 112 360 50 50 Average Speed 175 | 143 160 130 120 120 120 120 128 133 360 516 132 Slowest Speed 900 | 160 160 160 120 120 120 120 190 265 360 900 210 Overloaded Moves . | . . . . . . . . . . . . Propulsion Burnouts . | . . . . . . . . . . . . Robots Hopped . | . . . . . . . . . . . . Cave-ins Triggered . | . . . . . . . . . . . . Exploration Rate (%) 35 | 4 18 64 27 19 66 10 15 18 63 48 78 Regions Visited 11 Branch Regions 5 Pre-discovered Areas . | . . . . . . . . . . . . Known Exits Taken 7 | . . . . 1 1 1 1 1 1 1 . Unknown Exits Taken 4 | 1 1 1 1 . . . . . . . . Scrap Searched 2 | . . . . . . . . . 2 . . Spaces Dug 1 | . . . . . 1 . . . . . . Terrain Destroyed 46 | . . . . 9 6 . 8 6 8 4 5 Melee . | . . . . . . . . . . . . Projectile 33 | . . . . 1 6 . 8 6 8 4 . AOE 13 | . . . . 8 . . . . . . 5 Terrain Rammed . | . . . . . . . . . . . . Walls Destroyed . | . . . . . . . . . . . . Machines Disabled . | . . . . . . . . . . . . Actions | -11 -10 -10 -9 -8 -8 -7 -6 -5 -5 -5 -5 --------- Run | Yrd Mat Min Mat Mat Sto Fac Fac Fac Upp Upp War Total 5308 | 68 110 329 433 204 605 419 734 695 445 288 978 Wait 674 | . 6 8 145 34 154 33 79 108 18 . 89 Move 4102 | 52 92 271 222 140 375 362 556 518 395 262 857 Hop . | . . . . . . . . . . . . Pick Up 101 | 10 2 2 19 6 6 8 25 11 2 1 9 Fast Attach 8 | . . . . . . 1 . . . . 7 Attach 49 | 6 1 1 4 2 1 2 8 8 5 4 7 Detach . | . . . . . . . . . . . . Swap 54 | . . 3 9 4 12 5 15 2 3 . 1 Drop 62 | . . 1 17 5 9 5 11 4 4 2 4 Fire 255 | . 9 43 15 13 48 3 40 43 18 19 4 Melee . | . . . . . . . . . . . . Ram . | . . . . . . . . . . . . Kick 1 | . . . . . . . . 1 . . . Crush . | . . . . . . . . . . . . Escape Stasis . | . . . . . . . . . . . . Rewire . | . . . . . . . . . . . . Trap . | . . . . . . . . . . . . Miscellaneous 2 | . . . 2 . . . . . . . . Route ------- -11/Scrapyard -10/Materials -10/Mines -9/Materials -8/Materials -8/Storage -7/Factory -6/Factory -5/Factory -5/Upper Caves -5/Upper Caves -5/Warlord History --------- Turn | Location | Event 8 | -11/Scrapyard | Discovered new exit (range 15) 92 | -11/Scrapyard | Entered Materials 155 | -10/Materials | Discovered new exit (range 7) 276 | -10/Materials | Entered Mines 277 | -10/Mines | Assembled infested the area 315 | -10/Mines | Build established: Mutant 483 | -10/Mines | Core integrity fell below 50% 565 | -10/Mines | Core integrity fell below 20% 710 | -10/Mines | Found the Drone Emporium 729 | -10/Mines | Found Prototype Device 752 | -10/Mines | Discovered new exit (range 11) 776 | -10/Mines | Entered Materials 776 | -9/Materials | Evolved 2 slots: Propulsion x1, Utility x1 1040 | -9/Materials | Discovered new exit (range 11) 1277 | -9/Materials | Entered another Materials area 1277 | -8/Materials | Evolved 2 slots: Utility x2 1506 | -8/Materials | Discovered new exit (range 5) 1528 | -8/Materials | Identified exit to Storage 1534 | -8/Materials | Entered Storage 2290 | -8/Storage | Discovered new exit (range 10) 2310 | -8/Storage | Identified exit to Factory 2311 | -8/Storage | Entered Factory 2311 | -7/Factory | Evolved 2 slots: Weapon x2 2754 | -7/Factory | Discovered new exit (range 12) 2790 | -7/Factory | Build established: Gunner 2809 | -7/Factory | Identified exit to Factory 2810 | -7/Factory | Entered another Factory area 2810 | -6/Factory | Evolved 2 slots: Propulsion x1, Utility x1 3470 | -6/Factory | Garrison activated, responded to threat 3664 | -6/Factory | Spotted B-75 Beast 3700 | -6/Factory | Destroyed B-75 Beast 3750 | -6/Factory | Discovered new exit (range 13) 3769 | -6/Factory | Identified exit to Factory 3796 | -6/Factory | Build established: Scavenger-Gunner 3815 | -6/Factory | Entered another Factory area 3815 | -5/Factory | Evolved 2 slots: Power x1, Weapon x1 3969 | -5/Factory | Destroyed 9 combat bots 3977 | -5/Factory | Lost 5 parts (2n3w) 4719 | -5/Factory | Cargo convoy interrupted 4758 | -5/Factory | Discovered new exit (range 15) 4786 | -5/Factory | Identified exit to Upper Caves 4788 | -5/Factory | Entered Upper Caves 4827 | -5/Upper Caves | Lost 3 parts (1p2n) 5065 | -5/Upper Caves | Build established: Gunner 5153 | -5/Upper Caves | Attracted the attention of an 0b10 checkpoint 6282 | -5/Upper Caves | Discovered new exit (range 4) 6293 | -5/Upper Caves | Identified exit to Upper Caves 6304 | -5/Upper Caves | Entered another Upper Caves area 6349 | -5/Upper Caves | Lost 4 parts (1n1u2w) 7647 | -5/Upper Caves | Spotted B-75 Beast 7652 | -5/Upper Caves | Core integrity fell below 50% 7694 | -5/Upper Caves | Core integrity fell below 20% 7718 | -5/Upper Caves | Lost 5 parts (2u3w) 7725 | -5/Upper Caves | Discovered new exit (range 11) 7730 | -5/Upper Caves | Identified exit to Warlord 7730 | -5/Upper Caves | Entered Warlord 7756 | -5/Warlord | System corruption cleaned by Quarantine Array 7972 | -5/Warlord | Build established: Mutant 8021 | -5/Warlord | Met Warlord 8035 | -5/Warlord | Warlord's base attacked by MAIN.C 8385 | -5/Warlord | Warlord forces counterattacked 8396 | -5/Warlord | Build established: Derelict-Tank 8710 | -5/Warlord | Warlord base infiltrated, sounded retreat 8721 | -5/Warlord | Met EX-DEC 8944 | -5/Warlord | Build established: Pyromaniac-Tank 8971 | -5/Warlord | Spotted Striker 8996 | -5/Warlord | Core destroyed Last Messages --------------- Acquired Thermoblaster. [Achievement: Let's See Who's Tougher] L-41 Fighter destroyed. Decryption Engine disabled. Power failure averted by Imp. Cryofiber Web. Acquired Wave Gun. Mak. Leg blown off. Thermoblaster blown off. E-15 Imp destroyed. Wave Gun broken. Overheating: Short circuit. Dropped Broken Wave Gun. Power failure averted by Imp. Cryofiber Web. Mak. Transmission Jammer destroyed. Power failure averted by Imp. Cryofiber Web. Overheating: Matter decay (-18). Knocked back. Imp. Cryofiber Web destroyed. Power failure, Neutrino Core shutdown. Overheating: Core damaged (-180). Map ----- +----------------------------------------------------+ | ????????????????????????????????????????????###### | | ####????????????????????????????????????????# | | """##??????????????????###??????????????????# | | "#???????############ #############??????# | | "#???????# + #??????# | | #X"#???????# ############### #??????# | | #""#???????# # #???# #??????# | | ####??????## # #???# #??????# | | +########### # #???# ||| ######?# | | # """### # #???# # #######+ | | # "#?# ###+##+######## !!! + | | + X#?# ^ + # # | | # "#?#^ ^ ## # ### ###+ | | ######?# ^"""" ## # #########+##### # | | ## ###??????#^^"""" ## !!! ?????# # # | | ## ########## """" ## #?###?# # # | | # "" " #####+#### ### " """ # # // | | i " """ # + | | " """ # # !! | | #################### # """ """ # # | | ???????????????????# bK """ # # | | ?????#######???????# b=##/;;;## # # | | ?????# X#???????# /!]=[=g #??########+## # | | ?????# "???????# /=*=%!!! #?????????# # | | ?????# "???????######g!=! #?????????# # | | ?????# "????????????#@!! ########### ##+# | | ?????# #????????????#=[% ## + ^ # | | ?????# #######???????# ## #^ # | | ?????# """"""""#?????######### # ^""" # | | ?????# "#?????????????# ] ! # """ # | | ###### "#?????????????# !! + ^""" # | | + "#?????????????# # """ # | | + ""#?????????????# + """ # | | + "#?????????????# # # | | ###### "#?????????????# # ^ | | ##???# "#?????????????#######+## ^""" | | #???#""""""""""""#???????????????????# """ | | #???##############???????????????????# """ | | #??????????????????????????????????### """ | | #?????????????????????????????????## """ | | #?????????????????????????????????# | | #??????????????????????????????????# | | #??????????????????????????????????# | | #??????????????????????????????????#+#+####+##### | | ##????????????????????????????????? #? ??? | | ????????????????????????????????? # ? | | ????????????????##############?# # | | ???????????????#"""""""""""""#?# # | | ########???????#""" """""""#?# [ [ # """" | | #???????#""""X ""#?# # """""" | +----------------------------------------------------+ Best States ------------- Heat Dissipation 116 Energy Generation 31 Energy Capacity 490 Matter Stores 300 Matter Capacity 300 Sight Range 16 Terrain Scan Range 16 Terrain Scan Density 10 Jamming Range 14 Base Temperature (-) 150 Resistance: KI 20 Weapon Cycling 20 Evasion (%) 55 Targeting Accuracy 14 Recoil Reduction 2 Offensive Hacking 10 Item Schematics ----------------- None Robot Schematics ------------------ None Fabricated ------------ Nothing Alien Tech Used ----------------- None Achievements -------------- A Powerful Ally? Dynamic Key Let's See Who's Tougher Challenges ------------ None Game ------ Seed NodeArmoredFlail Manual? 0 Play Time 01:17:42 Cumulative 9.0 hours Start 2024.12.05 @ 01:18:18 End 2024.12.05 @ 02:36:10 Sessions 1 Manual Loads 0 Difficulty Rogue Special Mode None Game No. 12 Rogue 12 Adventurer 0 Explorer 0 Win Type - Total 0 Types 0/0/0/0/0/0/0/0/0 Lore% 9 Gallery% 18 Achievement% 16 Wizard Run 0 Options --------- Layout 1 ASCII 0 Keyboard 0 Movement Mouse Keybinds 0 Fullscreen 1 Font 24/Smallcaps Map View 50x35 Zoom Use 0% Tactical HUD 0 Map Filters NONE Filters NONE Steam 1 RUN: d1ff0130-0d5e-4787-8211-674baba4b617